bitfinex/quotes_ETHUSD_20220115
["timestamp","ask_amount","ask_price","bid_price","bid_amount"]
[1642282896287,2.56005963,3341.7,3341.5,0.1197]
[1642282896490,2.56005963,3341.7,3341.6,1.37999625]
[1642282896791,2.56005963,3341.7,3341.5,0.1197]
[1642282896989,2.56005963,3341.7,3341.6,0.89771489]
[1642282897489,2.56915263,3342.1,3341.6,0.89771489]
[1642282897928,2.56915263,3342.1,3341.7,0.00113685]
[1642282898129,2.56005963,3342.0,3341.7,0.00113685]
[1642282901778,0.67981062,3341.9,3341.7,0.00113685]
[1642282902981,7.51005963,3341.8,3341.7,0.00113685]
[1642282903382,2.56005963,3341.8,3341.7,0.00113685]
[1642282903785,2.56005963,3341.8,3341.6,1.20256926]
[1642282904183,2.56005963,3341.8,3341.7,0.00113685]
[1642282908130,2.56005963,3342.0,3341.7,0.00113685]
[1642282908337,2.56005963,3342.0,3340.4,0.429]
[1642282908338,17.27179212,3341.8,3340.4,0.429]
[1642282908535,17.27179212,3341.8,3339.8,0.004546]
[1642282908536,0.01299811,3340.5,3339.4,1.96191203]
[1642282908735,0.03649517,3340.4,3339.5,1.2785]
[1642282908991,5.42515299,3341.7,3339.6,2.0]
[1642282909186,2.0,3341.6,3339.7,0.1197]
[1642282909386,2.0,3341.6,3340.7,0.86887344]
[1642282909585,2.0,3341.6,3340.8,0.1197]
[1642282909586,0.429,3341.6,3340.8,0.1197]
[1642282909788,0.8133725,3341.3,3340.8,0.14105541]
[1642282909985,0.8133725,3341.3,3340.9,0.00454738]
[1642282910387,0.8133725,3341.3,3341.0,0.0162396]
[1642282910786,0.8133725,3341.3,3341.1,0.00341054]
[1642282911186,2.56034738,3341.2,3341.1,0.00341054]
[1642282911593,2.54410778,3341.2,3340.9,0.00454738]
[1642282911987,2.54410778,3341.2,3340.9,0.0162396]
[1642282912387,0.429,3341.6,3341.0,0.00397896]
[1642282912588,0.429,3341.6,3341.0,0.02469054]
[1642282913033,0.429,3341.6,3341.1,0.00341054]
[1642282913332,0.429,3341.6,3341.2,0.02071158]
[1642282913731,4.73892605,3341.4,3341.3,0.00227369]
[1642282914336,0.429,3341.6,3341.3,0.02298527]
[1642282914532,3.19148,3341.8,3341.3,0.02071158]
[1642282914533,3.07178,3341.8,3341.3,0.02071158]
[1642282914735,3.07178,3341.8,3341.4,0.00170527]
[1642282915533,3.07178,3341.8,3341.3,0.02071158]
[1642282915534,3.85204653,3341.8,3341.3,0.02071158]
[1642282915736,3.07178,3341.8,3341.4,0.00170527]
[1642282916335,3.07178,3341.8,3341.3,0.02298527]
[1642282916790,3.07178,3341.8,3341.4,0.00170527]
[1642282917184,3.0622,3341.8,3341.4,0.00170527]
[1642282917385,0.00113685,3341.9,3341.4,0.00170527]
[1642282917985,3.0,3341.8,3341.4,0.00170527]
[1642282918183,3.0,3341.8,3341.5,0.76577632]
[1642282918386,3.08964683,3341.8,3341.5,0.76577632]
[1642282918584,3.08964683,3341.8,3341.4,0.00170527]
[1642282918783,3.08964683,3341.8,3341.5,0.1197]
[1642282918985,3.08964683,3341.8,3341.4,0.12140527]
[1642282919390,3.08964683,3341.8,3341.5,0.00113684]
[1642282920948,3.08964683,3341.8,3341.6,0.70475479]
[1642282921352,9.05,3341.6,3340.4,0.5982296]
[1642282921552,9.05,3341.6,3340.0,0.119756]
[1642282921553,0.01249008,3340.9,3340.0,3.975156]
[1642282921751,0.13335359,3340.8,3340.5,0.0197291]
[1642282921956,0.56235359,3340.8,3340.5,0.00511581]
[1642282922151,0.56235359,3340.8,3340.6,0.00454738]
[1642282922352,0.56235359,3340.8,3340.1,0.0073895]
[1642282922550,1.38796513,3340.7,3340.2,0.76482453]
[1642282922950,1.38796513,3340.7,3340.3,0.00625266]
[1642282923983,2.05265166,3340.7,3340.3,0.00625266]
[1642282924183,0.00868901,3340.6,3340.3,0.00625266]
[1642282924589,0.00868901,3340.6,3340.1,0.0073895]
[1642282924786,0.429,3340.7,3340.1,0.0073895]
[1642282925984,1.25593182,3340.6,3340.2,0.80610969]
[1642282926185,0.08967139,3340.8,3340.2,0.80610969]
[1642282926384,0.08967139,3340.8,3340.3,0.00625266]
[1642282927386,0.75773171,3340.7,3340.3,0.00625266]
[1642282928037,0.75773171,3340.7,3339.8,0.00909477]
[1642282928240,0.01289083,3340.6,3339.8,0.00909477]
[1642282928437,3.0,3340.7,3339.8,0.00909477]
[1642282928639,0.02478558,3340.6,3339.8,0.00909477]
[1642282930240,3.0,3340.7,3339.8,0.00909477]
[1642282930839,3.0,3340.7,3339.9,0.90978347]
[1642282931241,3.0,3340.7,3340.0,0.00795793]
[1642282935257,2.0,3340.7,3340.1,0.74779]
[1642282935644,2.0,3340.7,3340.2,0.00682108]
[1642282936043,2.0,3340.7,3340.0,0.00795793]
[1642282936244,2.0,3340.7,3340.1,0.5982787]
[1642282936543,2.0,3340.7,3340.2,0.00682108]
[1642282937845,2.0,3340.7,3340.0,0.00795793]
[1642282940689,2.0,3340.7,3340.1,0.5982785]
[1642282941089,2.0,3340.7,3340.2,0.00682108]
[1642282941687,2.0,3340.7,3340.0,0.00795793]
[1642282942289,2.0,3340.7,3339.9,0.8677414]
[1642282942490,0.00341055,3340.6,3339.9,0.8677414]
[1642282942945,0.00284212,3340.5,3339.9,0.8677414]
[1642282943340,0.0022737,3340.4,3339.9,0.8677414]
[1642282943542,0.0120743,3340.0,3339.2,0.15587528]
[1642282943747,0.0129155,3339.3,3339.2,0.15587528]
[1642282943944,0.0129155,3339.3,3339.2,6.6e-05]
[1642282944342,0.01646949,3339.8,3339.2,6.6e-05]
[1642282944542,0.1197,3339.7,3339.3,0.70549681]
[1642282944742,0.1197,3339.7,3339.3,0.70947577]
[1642282944944,0.1197,3339.7,3339.3,0.00397896]
[1642282945144,0.1197,3340.0,3339.3,0.00397896]
[1642282945343,0.1197,3340.1,3339.3,0.00397896]
[1642282945548,0.1197,3340.2,3339.5,1.5]
[1642282945843,0.12083685,3340.2,3339.6,0.00227369]
[1642282946488,2.56122175,3340.1,3339.6,0.00227369]
[1642282946688,0.1197,3340.0,3339.6,0.00227369]
[1642282947290,0.93353967,3339.8,3339.6,0.00227369]
[1642282947492,0.1197,3339.7,3339.6,0.00227369]
[1642282947689,0.1197,3340.1,3339.6,0.00227369]
[1642282947890,1.09840043,3340.0,3339.6,0.00227369]
[1642282948095,0.1197,3339.9,3339.6,0.00227369]
[1642282948290,3.0,3339.8,3339.6,0.00227369]
[1642282948489,0.1197,3339.7,3339.6,0.00227369]
[1642282949691,0.99797459,3339.7,3339.6,0.00227369]
[1642282950093,0.87827459,3339.7,3339.6,0.00227369]
[1642282952440,3.0,3339.8,3339.6,0.00227369]
[1642282953342,0.08970613,3339.7,3339.6,0.00227369]
[1642282953740,0.08970613,3339.7,3339.0,2.0015146]
[1642282953988,0.08970613,3339.7,3339.3,0.00170527]
[1642282956490,0.82049561,3339.6,3339.3,0.00170527]
[1642282957288,0.82049561,3339.6,3339.0,0.00341054]
[1642282957493,0.82049561,3339.6,3339.0,1.89060566]
[1642282957935,0.82049561,3339.6,3339.1,0.00284212]
[1642282958336,0.04789686,3339.6,3339.1,0.00284212]
[1642282959136,0.04789686,3339.6,3339.0,0.00341054]
[1642282959336,0.04789686,3339.6,3339.0,1.90678765]
[1642282959536,0.65960036,3339.3,3339.0,1.90678765]
[1642282959738,0.65960036,3339.3,3339.1,0.00284212]
[1642282959938,0.04789686,3339.6,3339.1,0.00284212]
[1642282960737,0.04789686,3339.6,3339.0,1.93489556]
[1642282961144,0.04789686,3339.6,3339.2,0.93712664]
[1642282963189,0.04179384,3339.5,3339.2,0.93712664]
[1642282964189,0.04179384,3339.5,3339.3,1.87633424]
[1642282964390,0.04179384,3339.5,3339.2,0.93712664]
[1642282964590,0.16149384,3339.5,3339.4,0.00113685]
[1642282965267,0.16149384,3339.5,3338.9,1.6812208]
[1642282965268,0.16149384,3339.5,3339.0,0.00341054]
[1642282965657,0.16149384,3339.5,3339.1,0.68741575]
[1642282965956,0.16149384,3339.5,3339.2,0.00227369]
[1642282966563,0.16149384,3339.5,3338.0,3.5]
[1642282966564,0.01237006,3339.3,3338.0,3.5]
[1642282966762,9.04872507,3338.7,3337.2,2.25051893]
[1642282966960,0.04788423,3338.5,3338.1,0.0380095]
[1642282967159,0.429,3338.9,3338.1,0.0380095]
[1642282967160,0.042458,3338.2,3338.1,0.0380095]
[1642282967360,0.162258,3338.2,3336.9,0.00857143]
[1642282967659,0.04028566,3338.0,3337.6,0.92926086]
[1642282967860,0.02424021,3338.1,3337.6,0.92926086]
[1642282968058,0.027964,3337.7,3337.6,0.92926086]
[1642282968462,0.027964,3337.7,3337.6,0.00909478]
[1642282968865,0.027964,3337.7,3337.5,0.17397378]
[1642282969089,0.027964,3337.7,3337.0,0.01250532]
[1642282969090,3.027964,3337.7,3337.0,1.26201439]
[1642282969287,0.025758,3337.1,3337.0,12.46201439]
[1642282969490,0.025758,3337.1,3337.0,12.13855924]
[1642282969690,3.004546,3337.7,3337.1,14.3]
[1642282970089,3.004546,3337.7,3337.2,0.18209199]
[1642282970289,3.0,3337.7,3337.2,0.18209199]
[1642282970488,3.0,3337.7,3337.3,0.01080005]
[1642282970790,3.0,3337.7,3337.4,0.17072352]
[1642282971188,3.0,3337.7,3337.5,0.0096632]
[1642282972091,3.0,3337.7,3337.6,0.74714059]
[1642282972591,3.0,3337.7,3337.6,0.75623537]
[1642282973239,3.08975539,3337.7,3337.6,0.75623537]
[1642282973643,8.8,3337.5,3336.3,0.05005]
[1642282973842,0.04177079,3337.2,3335.6,3.6030826]
[1642282974050,0.01292416,3336.9,3335.6,3.6030826]
[1642282974239,0.016594,3335.7,3335.6,3.6030826]
[1642282974440,0.016594,3335.7,3335.5,0.13657637]
[1642282974441,0.016594,3335.7,3335.2,4.8454]
[1642282974642,0.016594,3335.7,3335.6,0.12407153]
[1642282974643,1.41749849,3335.7,3335.6,0.12407153]
[1642282975740,1.41749849,3335.7,3335.6,0.07407153]
[1642282975938,0.81749849,3335.7,3335.6,0.74347986]
[1642282976140,2.0,3336.3,3335.6,0.10587069]
[1642282976341,0.429,3336.4,3335.6,0.10587069]
[1642282976598,0.00341054,3336.2,3335.1,0.18232859]
[1642282976893,0.429,3336.4,3335.7,0.10587069]
[1642282976894,0.00284212,3336.1,3335.7,0.10587069]
[1642282977091,0.00284212,3336.1,3335.2,0.18460228]
[1642282977294,2.00720838,3336.3,3335.2,0.18460228]
[1642282977295,0.0022737,3336.0,3335.2,0.18460228]
[1642282977492,0.0022737,3336.0,3335.3,0.00170527]
[1642282977697,0.1199,3336.2,3335.3,0.00170527]
[1642282977698,0.00170527,3335.9,3335.3,0.00170527]
[1642282977891,0.12160527,3335.9,3335.3,0.00170527]
[1642282978091,1.34152641,3335.6,3334.8,1.40521097]
[1642282978395,0.00683035,3335.5,3334.5,1.2]
[1642282978593,0.01137774,3335.5,3334.4,0.0052046]
[1642282978792,1.34152641,3335.6,3334.1,0.0172205]
[1642282978793,0.00397897,3335.4,3334.2,5.5815046]
[1642282978990,0.00397897,3335.4,3334.5,0.00113685]
[1642282979196,1.52906174,3335.0,3334.5,0.00113685]
[1642282979395,0.00341054,3335.3,3334.3,1.26653194]
[1642282979694,0.00397897,3335.2,3334.8,0.74883787]
[1642282979892,0.00397897,3335.2,3334.1,4.64927757]
[1642282980091,0.00341054,3335.1,3334.1,0.17327757]
[1642282980345,0.00341054,3335.1,3334.2,0.13670527]
[1642282980545,0.00284212,3335.0,3334.2,0.13670527]
[1642282980744,0.00284212,3335.0,3334.3,0.00113684]
[1642282980944,0.0022737,3334.9,3334.3,0.13733684]
[1642282981348,0.00170527,3334.8,3334.3,0.13733684]
[1642282981753,0.00113685,3334.7,3334.3,0.13733684]
[1642282981945,0.00113685,3334.7,3334.4,0.0764579]
[1642282982147,0.00625266,3335.6,3335.4,0.85753342]
[1642282982345,0.00625266,3335.6,3334.4,0.0764579]
[1642282982346,0.1199,3335.5,3334.5,0.1362]
[1642282982550,0.12558424,3335.5,3335.1,1.52346571]
[1642282982748,0.12558424,3335.5,3334.5,0.2126579]
[1642282982749,0.00511582,3335.4,3334.5,0.2126579]
[1642282982947,0.00511582,3335.4,3335.2,0.1362]
[1642282983147,0.00454739,3335.3,3335.2,0.2126579]
[1642282983351,0.78612124,3335.3,3334.6,0.1362]
[1642282983548,0.00454739,3335.3,3335.2,0.1362]
[1642282983747,2.0,3336.1,3335.2,0.1362]
[1642282984002,0.1199,3336.0,3334.9,0.1362]
[1642282984191,0.1199,3336.0,3334.8,0.009093]
[1642282984192,0.00795793,3335.9,3335.3,0.1362]
[1642282984397,1.50147949,3335.9,3335.3,0.1362]
[1642282984597,0.12728951,3335.8,3335.2,0.83349417]
[1642282984793,0.12728951,3335.8,3334.3,0.50659474]
[1642282984794,0.12728951,3335.8,3335.4,0.1362]
[1642282984992,0.00682109,3335.7,3335.4,0.1362]
[1642282985191,0.1199,3335.6,3335.4,0.1362]
[1642282985391,0.00625266,3335.6,3334.4,0.1362]
[1642282985597,0.13767474,3335.5,3334.4,0.1362]
[1642282985793,0.004546,3335.1,3334.6,0.72876779]
[1642282985994,0.1199,3335.0,3334.6,0.72876779]
[1642282986192,0.00284212,3335.0,3334.3,0.00113684]
[1642282986393,0.0022737,3334.9,3334.5,0.219]
[1642282986596,0.0022737,3334.9,3334.3,0.00113684]
[1642282986794,0.00170527,3334.8,3334.3,0.00113684]
[1642282987196,0.00113685,3334.7,3334.4,0.78735377]
[1642282987599,1.11238087,3335.2,3334.4,0.78735377]
[1642282988040,0.00341054,3335.1,3334.4,0.78735377]
[1642282988242,0.08983628,3334.8,3334.4,0.78735377]
[1642282988441,0.00284212,3335.0,3334.4,0.78735377]
[1642282988641,0.00113685,3334.7,3334.4,0.78735377]
[1642282988841,0.0022737,3334.9,3334.4,0.78735377]
[1642282989045,0.00625266,3335.6,3334.4,0.78735377]
[1642282989256,0.00170527,3334.8,3334.4,0.78735377]
[1642282989442,0.0129648,3334.7,3334.5,1.25346408]
[1642282989652,0.00113685,3334.7,3334.5,1.25346408]
[1642282989841,0.00170527,3334.8,3334.5,1.25346408]
[1642282990244,0.00113685,3334.7,3334.5,1.25346408]
[1642282990645,0.00170527,3334.8,3334.5,1.25346408]
[1642282991043,0.00113685,3334.7,3334.4,0.78735377]
[1642282991500,0.00170527,3334.8,3334.4,0.78735377]
[1642282991890,0.00113685,3334.7,3334.4,0.78735377]
[1642282992295,3.0,3334.9,3334.4,0.78735377]
[1642282992296,0.00170527,3334.8,3334.4,0.78735377]
[1642282992492,0.00170527,3334.8,3334.5,1.42159959]
[1642282992693,3.9905,3335.7,3334.5,1.42159959]
[1642282992694,0.1199,3335.7,3334.8,0.0209986]
[1642282992891,0.004546,3336.5,3334.8,0.429]
[1642282992892,0.1199,3336.4,3334.8,0.429]
[1642282993992,1.39922349,3335.7,3334.8,0.429]
[1642282994193,0.124446,3336.5,3334.9,1.00365779]
[1642282994394,0.00454739,3335.6,3335.0,0.429]
[1642282994594,0.00454739,3335.6,3335.0,0.5054579]
[1642282994805,0.00397897,3335.5,3335.1,0.0764579]
[1642282994992,0.00397897,3335.5,3335.2,0.429]
[1642282995240,0.00341055,3335.4,3335.2,12.76316693]
[1642282995540,1.44654601,3336.2,3335.3,0.8253179]
[1642282995741,1.44654601,3336.2,3335.4,0.429]
[1642282995942,0.00738951,3336.1,3335.4,0.5054579]
[1642282996342,0.14746173,3336.0,3335.5,0.0764579]
[1642282996641,0.00625266,3335.9,3335.6,0.67321395]
[1642282996840,0.1199,3335.8,3335.6,0.67321395]
[1642282997041,0.12558424,3335.8,3335.6,0.67321395]
[1642282997246,0.11968424,3336.1,3335.5,1.44234304]
[1642282997449,0.1199,3336.4,3335.5,1.44234304]
[1642282997642,0.00170527,3336.1,3335.6,0.00113684]
[1642282998041,0.1199,3336.4,3335.5,1.39347988]
[1642282998042,0.00113685,3336.0,3335.5,1.39347988]
[1642282998243,0.03487292,3335.8,3335.5,1.39347988]
[1642283000095,0.03487292,3335.8,3335.4,0.88438456]
[1642283000291,0.01586987,3335.7,3335.4,0.88438456]
[1642283001292,0.03487292,3335.8,3335.4,0.88438456]
[1642283004748,0.00170526,3335.9,3335.4,0.88438456]
[1642283004946,0.1199,3335.8,3335.1,1.2332]
[1642283005153,1.32188982,3335.2,3335.1,1.2332]
[1642283005348,0.00113684,3335.8,3335.2,0.0022737]
[1642283006247,0.00113684,3335.8,3335.3,0.85213572]
[1642283006694,0.00113684,3335.8,3335.4,0.00113685]
[1642283008396,0.00113684,3335.8,3335.5,0.04415875]
[1642283010096,3.00113684,3335.8,3335.5,0.04415875]
[1642283010348,0.04872507,3335.7,3335.5,0.04415875]
[1642283011144,0.04872507,3335.7,3335.3,0.64743132]
[1642283011344,0.00113684,3335.6,3335.3,0.64743132]
[1642283011543,0.0266055,3335.5,3335.3,0.64743132]
[1642283011944,0.0266055,3335.5,3335.3,0.59743132]
[1642283013057,12.09872507,3335.3,3334.2,0.44872966]
[1642283013251,0.13236976,3335.4,3334.1,0.0172205]
[1642283013252,0.04872507,3335.1,3334.1,0.0172205]
[1642283013448,0.1199,3335.0,3333.9,1.36378696]
[1642283013847,0.00341054,3334.9,3334.0,0.00170527]
[1642283014099,0.1199,3334.8,3334.7,0.74545976]
[1642283014298,1.45434721,3334.8,3334.0,0.00170527]
[1642283014495,1.28511355,3334.2,3334.0,0.00170527]
[1642283014896,0.00227369,3334.7,3334.0,0.00170527]
[1642283015295,0.00170527,3334.6,3334.0,0.00170527]
[1642283015704,0.00113684,3334.5,3334.0,0.00170527]
[1642283015900,1.42845585,3334.4,3334.1,0.78537646]
[1642283016696,0.1199,3335.1,3334.1,0.78537646]
[1642283017100,0.00397896,3335.0,3334.1,0.78537646]
[1642283017298,0.1199,3334.9,3334.1,0.78537646]
[1642283017499,0.12331054,3334.9,3334.0,0.01079827]
[1642283017744,0.00284211,3334.8,3334.0,0.01079827]
[1642283017945,1.52777903,3334.3,3334.1,0.00113685]
[1642283018349,0.12217369,3334.7,3334.1,0.00113685]
[1642283018546,0.00227369,3334.7,3334.2,0.84129876]
[1642283018746,0.00170527,3334.6,3334.2,0.84129876]
[1642283019146,0.00113684,3334.5,3334.2,0.84129876]
[1642283019647,0.00341054,3334.9,3334.1,0.00113685]
[1642283019848,1.15602593,3334.3,3334.1,0.00113685]
[1642283020247,3.0,3334.5,3334.1,0.00113685]
[1642283020647,3.0,3334.5,3334.2,0.80682942]
[1642283022398,3.0,3334.5,3334.1,0.00113685]
[1642283023195,3.03643888,3334.5,3334.1,0.00113685]
[1642283023605,3.03643888,3334.5,3334.1,1.42160173]
[1642283023798,3.03643888,3334.5,3334.1,0.00113685]
[1642283027156,3.03643888,3334.5,3334.2,1.08739949]
[1642283028159,3.03643888,3334.5,3334.1,0.00113685]
[1642283029193,3.03643888,3334.5,3334.1,1.51098779]
[1642283029394,3.03643888,3334.5,3334.1,0.00113685]
[1642283029994,2.03643888,3334.5,3334.1,0.00113685]
[1642283030797,2.03643888,3334.5,3334.4,1.45912227]
[1642283031194,2.03757572,3334.5,3334.4,1.45912227]
[1642283032596,2.03757572,3334.5,3334.4,2.18542768]
[1642283037300,1.3089,3335.4,3334.5,15.32040909]
[1642283037496,1.3089,3335.4,3334.6,0.015963]
[1642283037497,0.1199,3335.4,3334.6,0.015963]
[1642283037695,0.00341054,3335.1,3334.6,0.015963]
[1642283038096,0.00284212,3335.0,3334.6,0.015963]
[1642283038295,0.00284212,3335.0,3334.4,1.45912227]
[1642283038497,0.0022737,3334.9,3334.2,2.009093]
[1642283038700,0.0022737,3334.9,3334.2,2.438093]
[1642283038898,3.0508,3335.5,3334.2,2.438093]
[1642283038899,0.00170527,3334.8,3334.6,0.020456]
[1642283039306,0.00113685,3334.7,3334.6,0.020456]
[1642283039497,0.00113685,3334.7,3334.6,7.620456]
[1642283039698,0.00113685,3334.7,3334.6,2.15982822]
[1642283040098,0.00113685,3334.7,3334.5,0.358549]
[1642283040358,3.00113685,3334.7,3334.5,0.358549]
[1642283040558,3.00113685,3334.7,3334.6,4.6]
[1642283040756,2.00113685,3334.7,3334.6,6.5707371]
[1642283041556,2.00113685,3334.7,3334.6,5.32599989]
[1642283042457,2.00113685,3334.7,3334.6,6.54119599]
[1642283043859,2.00113685,3334.7,3334.6,8.63423081]
[1642283044102,2.00113685,3334.7,3334.6,8.48423081]
[1642283044300,2.00113685,3334.7,3334.6,8.66013081]
[1642283044503,0.78085155,3334.7,3334.6,21.83913081]
[1642283046699,0.78085155,3334.7,3334.6,21.85961081]
[1642283047304,0.78085155,3334.7,3334.6,27.21961081]
[1642283047502,1.1886,3336.3,3335.0,0.20376169]
[1642283047756,1.1886,3336.3,3335.7,0.011261]
[1642283047757,0.1199,3336.2,3335.7,0.011261]
[1642283048053,0.00625266,3335.8,3335.7,0.011261]
[1642283048453,0.00625266,3335.8,3335.7,9.92146726]
[1642283050258,0.00625266,3335.8,3335.7,10.35046726]
[1642283050956,3.00625266,3335.8,3335.7,10.35046726]
[1642283051159,1.80625266,3335.8,3335.7,10.35046726]
[1642283051901,0.1199,3336.4,3335.7,10.35046726]
[1642283052099,0.1199,3336.4,3335.8,0.009741]
[1642283052307,0.01513079,3336.3,3335.9,0.1759]
[1642283052499,0.1199,3336.2,3335.9,0.1759]
[1642283052699,0.12217369,3336.2,3335.9,0.1759]
[1642283052901,0.00170527,3336.1,3335.9,0.1759]
[1642283053201,0.00113685,3336.0,3335.9,0.1759]
[1642283056347,0.00113685,3336.0,3335.9,4.5759]
[1642283057748,0.00113685,3336.0,3335.9,6.49711881]
[1642283057951,0.00113685,3336.0,3335.9,7.014587]
[1642283058151,3.685e-05,3336.0,3335.9,7.014587]
[1642283058360,3.685e-05,3336.0,3335.9,33.5671849]
[1642283058550,3.3125,3337.8,3336.1,0.1759]
[1642283058751,3.3125,3337.8,3337.1,0.011261]
[1642283059013,0.00966319,3337.7,3337.5,0.011025]
[1642283059504,0.00909477,3337.6,3337.5,0.011025]
[1642283060303,0.00909477,3337.6,3337.5,1.31883498]
[1642283061104,0.00909477,3337.6,3337.5,2.23407808]
[1642283062305,0.00909477,3337.6,3337.5,8.88407808]
[1642283062947,1.61818951,3338.4,3337.5,2.22305308]
[1642283063146,1.61818951,3338.4,3338.3,1.02448066]
[1642283063349,0.1198,3338.4,3338.3,1.02448066]
[1642283063951,0.1198,3338.7,3338.3,1.02448066]
[1642283064349,0.12605266,3338.7,3338.3,1.02448066]
[1642283064548,0.12605266,3338.7,3338.6,0.1759]
[1642283065364,0.07605266,3338.7,3338.4,0.1759]
[1642283065551,0.00625266,3338.7,3338.4,0.1759]
[1642283065752,0.00568424,3338.6,3338.4,0.1759]
[1642283066250,0.00511581,3338.5,3338.4,0.1759]
[1642283067908,0.00511581,3338.5,3338.4,0.6049]
[1642283068301,0.00511581,3338.5,3338.4,11.79854459]
[1642283071358,0.00511581,3338.5,3338.4,0.64854459]
[1642283072361,0.00511581,3338.5,3338.4,0.21954459]
[1642283073266,0.00511581,3338.5,3338.4,0.1759]
[1642283078054,0.00511581,3338.5,3338.4,4.6759]
[1642283078255,0.00511581,3338.5,3338.4,5.93596333]
[1642283079254,0.00511581,3338.5,3338.4,5.73596333]
[1642283079454,1.07606586,3339.1,3338.6,0.5911]
[1642283079654,0.1198,3339.4,3338.6,0.5911]
[1642283079955,0.00284212,3339.0,3338.6,0.5911]
[1642283080353,0.0022737,3338.9,3338.6,0.5911]
[1642283080753,0.00170527,3338.8,3338.6,0.5911]
[1642283081156,0.00113685,3338.7,3338.6,0.5911]
[1642283081355,0.00113685,3338.7,3338.5,0.5911]
[1642283082205,3.00113685,3338.7,3338.5,0.5911]
[1642283083303,3.00113685,3338.7,3338.5,0.63155057]
[1642283085252,2.77880989,3338.7,3338.5,0.63155057]
[1642283086059,1.36880989,3338.7,3338.5,0.63155057]
[1642283088258,1.36880989,3338.7,3338.5,0.5911]
[1642283091101,1.31880989,3338.7,3338.5,0.5911]
[1642283091311,17.2,3338.4,3337.0,3.01989794]
[1642283091514,0.01264211,3337.1,3336.1,0.1168]
[1642283091705,0.01264211,3337.1,3335.2,3.9451]
[1642283091706,0.01262214,3336.6,3335.2,3.9451]
[1642283091905,0.1271159,3336.5,3335.2,3.9451]
[1642283092101,0.1271159,3336.5,3335.3,0.0193264]
[1642283092302,1.18997775,3336.1,3335.3,1.39206235]
[1642283092506,0.1271159,3336.5,3335.4,0.90266838]
[1642283092751,0.1271159,3336.5,3335.4,0.92142635]
[1642283092752,0.1199,3336.5,3335.4,0.92142635]
[1642283092951,0.1199,3336.5,3335.5,0.01818955]
[1642283093354,0.429,3336.9,3335.5,0.01818955]
[1642283093555,0.1199,3337.1,3335.5,0.01818955]
[1642283093755,3.2184,3337.2,3335.5,0.01818955]
[1642283095053,1.2184,3337.2,3335.5,2.17434293]
[1642283095454,1.2184,3337.2,3335.9,1.93739342]
[1642283095655,0.429,3337.4,3336.0,2.12766689]
[1642283095855,0.429,3337.4,3337.3,1.32220563]
[1642283096056,0.429,3337.4,3337.3,2.11598481]
[1642283096255,0.429,3337.4,3337.3,2.12394274]
[1642283096518,0.1198,3337.7,3337.3,0.80173711]
[1642283096900,0.44104902,3337.8,3337.4,0.00738951]
[1642283097506,0.01204902,3337.8,3337.4,0.00738951]
[1642283097701,0.08184902,3338.1,3337.4,0.00738951]
[1642283097901,0.1198,3338.1,3337.4,0.00738951]
[1642283098504,0.1198,3338.1,3337.6,0.03807428]
[1642283098903,0.1198,3338.1,3337.7,0.00568424]
[1642283099310,2.56360904,3338.0,3337.7,0.00568424]
[1642283100957,0.00951262,3337.9,3337.7,0.00568424]
[1642283101255,2.56360904,3338.0,3337.7,0.00568424]
[1642283101455,0.01828537,3337.9,3337.7,0.00568424]
[1642283101660,12.4698,3337.8,3337.7,0.00568424]
[1642283101967,12.4698,3337.8,3336.1,5.82722641]
[1642283101968,1.31062734,3337.8,3336.1,5.82722641]
[1642283102158,0.00774436,3337.7,3336.1,3.8611]
[1642283102357,0.00680168,3337.5,3336.2,0.00852635]
[1642283102559,0.1198,3337.7,3336.2,0.00852635]
[1642283102858,0.00331409,3337.6,3336.2,0.00852635]
[1642283103057,1.17313522,3337.3,3336.3,1.53655739]
[1642283103257,1.17313522,3337.3,3336.4,2.02006525]
[1642283103456,1.17313522,3337.3,3336.4,0.0073895]
[1642283103657,1.17313522,3337.3,3336.5,0.00682108]
[1642283103856,2.56360904,3337.8,3336.2,2.20635181]
[1642283104134,2.56360904,3337.8,3334.0,1.5728495]
[1642283104135,0.03726491,3336.2,3334.7,0.005456]
[1642283104328,0.03726491,3336.2,3333.9,1.35469396]
[1642283104329,0.01231287,3334.8,3333.9,1.35469396]
[1642283104638,0.01231287,3334.8,3331.8,0.6315423]
[1642283104639,0.04872507,3334.2,3331.8,0.6315423]
[1642283104825,0.04872507,3334.2,3331.4,0.01833276]
[1642283104826,25.30241591,3334.1,3331.4,0.01833276]
[1642283105024,25.30241591,3334.1,3331.7,0.91427676]
[1642283105025,5.36,3333.1,3331.7,0.91427676]
[1642283105227,0.00652573,3332.9,3331.8,0.27120952]
[1642283105425,0.00652573,3332.9,3331.7,0.92326869]
[1642283105426,6.06009,3332.6,3331.7,0.87326869]
[1642283105626,5.37238221,3332.2,3330.5,1.77459296]
[1642283105823,5.36,3331.8,3330.5,0.96108294]
[1642283106028,16.9,3331.6,3330.3,0.20486079]
[1642283106227,16.9,3331.6,3329.7,0.1223621]
[1642283106228,0.01277834,3330.5,3329.7,0.1223621]
[1642283106423,0.1201,3330.4,3330.0,0.26888889]
[1642283106626,0.1201,3330.4,3330.1,0.00284212]
[1642283106627,1.24783314,3330.3,3330.1,0.00284212]
[1642283106832,0.429,3330.8,3330.1,0.00284212]
[1642283107231,0.1201,3331.5,3330.1,0.00284212]
[1642283107232,0.00511581,3331.5,3330.1,0.00284212]
[1642283107624,2.07454739,3332.2,3330.1,0.00284212]
[1642283107858,2.07454739,3332.2,3330.4,0.01217947]
[1642283107859,2.0,3332.2,3330.4,0.01217947]
[1642283108060,0.00397896,3332.1,3330.4,0.01217947]
[1642283108263,0.00397896,3332.1,3330.5,0.53151481]
[1642283108460,0.010911,3332.8,3331.2,0.01239326]
[1642283108461,0.00341054,3332.0,3331.2,0.01239326]
[1642283108665,0.00341054,3332.0,3331.3,0.429]
[1642283108862,0.00284211,3331.9,3331.4,0.70992777]
[1642283109162,0.010911,3332.8,3331.6,1.14220543]
[1642283109163,0.00227369,3331.8,3331.6,1.14220543]
[1642283109361,0.00227369,3331.8,3331.6,3.26136509]
[1642283109565,0.00170527,3331.7,3331.6,1.14220543]
[1642283109870,0.16124012,3332.0,3331.6,1.14220543]
[1642283110062,0.16124012,3332.0,3331.6,0.65941944]
[1642283110261,0.16124012,3332.1,3331.6,0.65941944]
[1642283110262,0.00121708,3332.1,3331.6,0.65941944]
[1642283110665,0.00121708,3332.1,3331.7,0.00113684]
[1642283111066,1.16685686,3332.5,3331.7,0.00113684]
[1642283111262,0.010911,3332.8,3331.7,0.00113684]
[1642283111512,0.010911,3332.8,3331.5,0.429]
[1642283111513,0.00284212,3332.4,3331.6,0.00170527]